bitfinex/quotes_ETHUSD_20250129
["timestamp","ask_amount","ask_price","bid_price","bid_amount"]
[1738112550374,3.20845,3116.8,3116.2,3.24109524]
[1738112550571,3.20845,3116.8,3116.2,6.92097056]
[1738112550769,3.20845,3116.8,3116.2,6.88888532]
[1738112550971,3.20845,3116.8,3116.2,3.67987532]
[1738112551176,3.20854,3116.7,3116.2,3.71196054]
[1738112551362,0.8207,3117.1,3116.0,3.96019]
[1738112551672,3.20864,3116.6,3116.0,3.99227526]
[1738112552996,3.20845,3116.8,3116.2,3.20901]
[1738112553300,3.20845,3116.8,3116.3,0.03208524]
[1738112553906,3.20845,3116.8,3116.3,3.24098524]
[1738112554061,3.20845,3116.8,3116.3,0.03208524]
[1738112554267,3.20854,3116.7,3116.0,3.9602]
[1738112554567,3.20863,3116.6,3116.0,3.9602]
[1738112555280,3.20863,3116.6,3116.0,7.16938]
[1738112555703,3.20863,3116.6,3116.1,0.03208578]
[1738112556003,3.20845,3116.8,3116.2,3.20896]
[1738112556199,3.20826,3117.0,3116.3,0.03208449]
[1738112556401,6.41656,3117.0,3116.4,3.20881]
[1738112556704,3.20839,3116.9,3116.3,3.24100449]
[1738112557493,3.20826,3117.0,3116.4,0.8106]
[1738112557798,3.20826,3117.0,3116.5,3.61388034]
[1738112558182,0.05241046,3116.9,3116.5,3.64596375]
[1738112558571,0.05241046,3116.9,3116.5,0.43724375]
[1738112558967,3.26073046,3116.9,3116.5,0.43724375]
[1738112559910,0.05241046,3116.9,3116.5,0.43724375]
[1738112560270,0.05241046,3116.9,3116.6,3.20856]
[1738112560510,0.05241046,3116.9,3116.7,0.71753087]
[1738112560674,3.20801,3117.2,3116.7,0.0320815]
[1738112561004,3.20824,3117.0,3116.5,3.20871]
[1738112561705,0.05241046,3116.9,3116.5,3.20871]
[1738112563012,0.05241046,3116.9,3116.5,3.24073185]
[1738112563177,0.05241046,3116.9,3116.5,3.20865]
[1738112563375,3.20811,3117.1,3116.5,3.20865]
[1738112563595,3.20843,3116.8,3116.4,0.8106]
[1738112563774,3.24858487,3116.8,3115.8,0.7956]
[1738112563976,0.05241046,3116.7,3116.1,3.20906]
[1738112564192,3.26094046,3116.7,3116.2,0.0320867]
[1738112564574,0.05241046,3116.7,3116.3,3.20892]
[1738112564906,3.20825,3117.0,3116.4,4.00439]
[1738112564907,6.41655,3117.0,3116.4,4.00439]
[1738112565087,0.05241046,3116.6,3116.4,4.00439]
[1738112565283,3.20825,3117.0,3116.4,4.00439]
[1738112565486,0.63176964,3117.3,3116.6,3.20855]
[1738112565487,3.20803,3117.2,3116.6,3.20855]
[1738112565789,3.20803,3117.2,3116.7,3.24059168]
[1738112565985,3.20764,3117.6,3116.8,3.20839]
[1738112566199,3.20764,3117.6,3116.9,0.03207814]
[1738112566407,3.20782,3117.4,3116.8,3.20839]
[1738112566615,3.20782,3117.4,3116.7,3.20842]
[1738112566929,3.20782,3117.4,3116.8,3.24047968]
[1738112567308,3.20792,3117.3,3116.8,3.2084]
[1738112567622,3.20792,3117.3,3116.7,0.03207967]
[1738112567773,3.20792,3117.3,3116.7,3.24057967]
[1738112567980,0.62988128,3117.5,3116.9,3.20828]
[1738112568180,0.62988128,3117.5,3117.0,0.8331]
[1738112568380,3.20771,3117.5,3117.0,0.8331]
[1738112569477,3.20771,3117.5,3117.0,4.0733673]
[1738112569675,3.20771,3117.5,3117.0,0.8651773]
[1738112570310,3.20771,3117.5,3117.0,1.27251903]
[1738112570690,3.20771,3117.5,3117.0,0.8331]
[1738112570889,3.2079,3117.3,3116.7,0.7986]
[1738112571227,3.2079,3117.3,3116.8,3.20839]
[1738112571517,3.2079,3117.3,3116.7,0.7986]
[1738112571518,3.20813,3117.1,3116.7,0.7986]
[1738112571716,3.2079,3117.3,3116.8,0.03208083]
[1738112572219,3.20801,3117.2,3116.8,0.03208083]
[1738112572381,3.20801,3117.2,3116.7,0.83068053]
[1738112572782,3.20801,3117.2,3116.7,0.7986]
[1738112573114,3.20801,3117.2,3116.8,0.03208053]
[1738112573329,0.05247976,3117.1,3116.8,0.03208053]
[1738112573514,0.05247976,3117.1,3116.7,0.7986]
[1738112573815,0.05247976,3117.1,3116.8,0.03208055]
[1738112574119,0.05247976,3117.1,3116.7,1.20252605]
[1738112574812,0.05247976,3117.1,3116.7,4.41100605]
[1738112575038,0.05247976,3117.1,3116.8,0.03208055]
[1738112575585,0.765,3117.7,3116.8,0.03208055]
[1738112575586,3.20794,3117.3,3116.8,3.24046055]
[1738112575819,0.05247976,3117.2,3116.8,4.00561421]
[1738112576026,3.20782,3117.4,3116.9,3.20823]
[1738112576195,0.05247976,3117.1,3116.9,3.20823]
[1738112576515,3.97254,3117.7,3116.9,6.41647]
[1738112576516,3.20767,3117.6,3116.9,6.41647]
[1738112576718,0.05247976,3117.0,3116.9,3.20823]
[1738112576876,3.20767,3117.6,3116.9,4.04666597]
[1738112577081,3.2075,3117.7,3117.1,3.20805]
[1738112577690,3.20738,3117.8,3117.0,0.03207739]
[1738112577915,3.20778,3117.5,3116.9,3.24029768]
[1738112578116,3.20751,3117.7,3117.0,3.85306477]
[1738112578415,3.20751,3117.7,3117.2,0.7933]
[1738112578616,3.20751,3117.7,3117.3,0.03207565]
[1738112579639,3.20751,3117.7,3117.2,4.00128]
[1738112580211,3.20773,3117.5,3116.9,0.7933]
[1738112580409,3.20795,3117.3,3116.9,0.7933]
[1738112580610,1.45372591,3118.0,3116.9,1.19347]
[1738112580828,3.20755,3117.7,3117.0,3.24018957]
[1738112581431,3.20755,3117.7,3117.1,3.20804]
[1738112581736,3.20755,3117.7,3117.2,0.03207557]
[1738112582034,3.20755,3117.7,3117.0,3.20811]
[1738112582241,3.20755,3117.7,3117.2,0.03207557]
[1738112582913,3.20759,3117.6,3117.2,0.03207557]
[1738112583099,3.20759,3117.6,3117.1,3.24008579]
[1738112583301,3.20748,3117.8,3117.1,3.64342437]
[1738112583642,3.20757,3117.7,3117.1,3.64342437]
[1738112584224,0.8062,3118.0,3117.1,0.43541437]
[1738112584414,3.2072,3118.0,3117.4,3.20773]
[1738112584617,3.2072,3118.0,3117.5,0.03207268]
[1738112585225,0.7843,3118.3,3117.5,0.03207268]
[1738112585226,3.20759,3117.6,3117.5,0.03207268]
[1738112585416,3.20759,3117.6,3117.2,0.7639]
[1738112585615,3.20759,3117.6,3117.2,1.16430568]
[1738112587141,0.64058173,3118.2,3117.2,1.16430568]
[1738112587444,3.20715,3118.1,3117.6,3.20758]
[1738112587646,3.20706,3118.2,3117.7,0.03207138]
[1738112587806,0.66054919,3118.4,3117.8,0.7876]
[1738112588010,3.86736919,3118.4,3117.8,3.99496]
[1738112588203,0.05285392,3118.3,3117.8,0.7876]
[1738112588402,3.20739,3117.8,3117.3,0.7876]
[1738112588803,3.2075,3117.7,3117.3,0.7876]
[1738112589138,3.26047392,3117.6,3117.3,0.7876]
[1738112590730,3.26047392,3117.6,3116.7,3.0]
[1738112590731,0.04009471,3117.5,3117.0,0.7618]
[1738112590934,3.20742,3117.8,3117.0,0.7618]
[1738112591149,0.05285392,3117.4,3117.1,0.03207844]
[1738112591349,3.20756,3117.7,3117.1,0.43228128]
[1738112591752,0.05285392,3117.6,3117.1,3.64036128]
[1738112592053,0.05285392,3117.6,3117.2,3.20798]
[1738112592357,0.05285392,3117.6,3117.3,0.03207555]
[1738112592542,3.2075,3117.7,3117.3,0.03207555]
[1738112592731,0.05285392,3117.5,3117.3,0.03207555]
[1738112592931,3.2075,3117.7,3117.3,0.03207555]
[1738112593144,0.05285392,3117.4,3117.3,0.03207555]
[1738112593343,3.2075,3117.7,3117.1,3.64037839]
[1738112593548,0.05285392,3117.4,3117.1,3.64037839]
[1738112593861,0.05285392,3117.3,3117.1,3.64037839]
[1738112594017,3.2075,3117.7,3117.1,3.64037839]
[1738112594218,3.2075,3117.7,3117.1,3.24017555]
[1738112594420,0.05285392,3117.6,3117.1,3.24017555]
[1738112595656,3.26052392,3117.6,3117.0,0.7618]
[1738112595963,3.20771,3117.5,3117.0,0.7618]
[1738112596322,0.05302016,3117.4,3117.0,0.7618]
[1738112596622,0.05302016,3117.4,3117.0,4.69106185]
[1738112596823,0.05302016,3117.4,3117.1,3.2081]
[1738112597142,3.20764,3117.6,3117.0,0.7618]
[1738112597346,0.05302016,3117.3,3117.1,0.03207579]
[1738112597605,3.20764,3117.6,3117.1,0.03207579]
[1738112597857,3.0,3118.2,3117.1,0.03207579]
[1738112598162,3.0,3118.2,3117.0,3.96996]
[1738112598163,0.05302016,3117.5,3117.0,3.96996]
[1738112598357,3.20766,3117.6,3117.0,3.96996]
[1738112598576,3.20766,3117.6,3117.0,0.7618]
[1738112598882,3.26127445,3117.5,3117.0,0.7618]
[1738112600661,0.05357445,3117.5,3117.0,0.7618]
[1738112600835,0.05357445,3117.5,3117.1,0.03207804]
[1738112601050,0.05357445,3117.5,3117.1,0.03207774]
[1738112601640,0.05357445,3117.5,3117.1,3.24015774]
[1738112602174,0.05357445,3117.5,3117.1,0.75310151]
[1738112602384,0.05357445,3117.5,3117.4,0.7748]
[1738112602592,3.20723,3118.0,3117.5,3.20767]
[1738112602933,3.20701,3118.2,3117.6,3.20753]
[1738112603343,0.05362986,3118.1,3117.6,3.20753]
[1738112603552,0.05362986,3118.1,3117.7,3.20748]
[1738112604247,4.66630886,3118.4,3117.6,3.20753]
[1738112604454,3.26108071,3118.0,3117.4,3.98257]
[1738112604631,3.20725,3118.0,3117.4,3.98257]
[1738112604942,3.20741,3117.8,3117.4,0.7748]
[1738112605547,0.05383071,3117.7,3117.4,0.7748]
[1738112605983,3.20741,3117.8,3117.4,0.7748]
[1738112606183,0.05383071,3117.6,3117.4,0.7748]
[1738112606482,3.20741,3117.8,3117.4,0.7748]
[1738112606483,0.05383071,3117.5,3117.4,0.7748]
[1738112606632,3.20741,3117.8,3117.4,0.7748]
[1738112606633,6.41451,3118.0,3117.4,0.7748]
[1738112606963,0.05383071,3117.9,3117.4,0.7748]
[1738112607379,0.05383071,3117.9,3117.5,0.03207488]
[1738112607528,0.05383071,3117.9,3117.6,3.2075]
[1738112607726,4.66621886,3118.4,3117.7,3.23954034]
[1738112607929,0.05384458,3117.8,3117.7,3.23954034]
[1738112608151,4.66621886,3118.4,3117.8,3.20736]
[1738112608354,4.03607,3118.4,3117.8,3.20736]
[1738112609368,4.03607,3118.4,3117.9,3.20728]
[1738112609540,3.21177,3118.4,3117.9,3.20728]
[1738112609736,0.005,3118.4,3118.2,3.20695]
[1738112609961,0.005,3118.4,3118.2,3.931549]
[1738112610971,0.005,3118.4,3118.3,4.03877]
[1738112611335,0.005,3118.4,3118.3,4.07083061]
[1738112611541,0.005,3118.4,3118.3,7.62083061]
[1738112611751,0.005,3118.4,3118.3,7.58877]
[1738112612038,0.41666667,3120.1,3119.7,3.20538]
[1738112612243,0.41666667,3120.1,3120.0,3.20512]
[1738112612473,0.41666667,3120.1,3120.0,3.97582]
[1738112612650,0.41666667,3120.1,3120.0,0.7707]
[1738112612975,0.41666667,3120.1,3120.0,3.97582]
[1738112613179,0.1604757,3120.9,3120.0,3.97582]
[1738112613180,0.1604757,3120.9,3120.8,3.9651]
[1738112613386,0.1604757,3120.9,3120.8,9.8601577]
[1738112613677,0.1604757,3120.9,3120.8,0.7608]
[1738112613972,0.1604757,3120.9,3120.0,0.7212997]
[1738112613973,3.20445,3120.7,3120.4,0.7608]
[1738112614175,3.20461,3120.5,3119.5,0.7608]
[1738112614476,3.20503,3120.1,3119.5,0.7608]
[1738112614674,3.20514,3120.0,3119.5,0.7608]
[1738112614875,3.2627618,3120.0,3119.5,0.7608]
[1738112615279,3.20525,3119.9,3119.5,0.7608]
[1738112615481,3.26289253,3119.9,3119.5,0.7608]
[1738112616190,0.05764253,3119.9,3119.5,0.7608]
[1738112616543,3.26288253,3119.9,3119.5,0.7608]
[1738112616967,3.26288253,3119.9,3119.5,0.67517306]
[1738112617169,0.05764253,3119.9,3119.5,3.88075306]
[1738112617372,0.05764253,3119.9,3119.7,3.20542]
[1738112617681,3.20433,3120.8,3120.1,3.20501]
[1738112617884,3.20433,3120.8,3120.2,0.03204633]
[1738112618056,3.20441,3120.7,3120.1,0.0320452]
[1738112618379,3.59787749,3120.7,3120.0,3.20511]
[1738112618584,3.26138892,3120.7,3120.1,0.0320452]
[1738112618943,0.05697892,3120.7,3120.1,0.0320452]
[1738112619266,0.1604757,3120.9,3120.4,3.20465]
[1738112619267,0.05749047,3120.6,3120.4,3.20465]
[1738112619577,0.1604757,3120.9,3120.2,3.0]
[1738112619765,0.1604757,3120.9,3120.5,3.23664018]
[1738112619973,0.1604757,3120.9,3120.6,0.8307]
[1738112621869,0.1604757,3120.9,3120.3,3.2048]
[1738112621870,3.20431,3120.8,3120.3,0.8307]
[1738112622494,0.04005465,3120.7,3120.0,3.20504]
[1738112622693,3.20452,3120.6,3120.0,3.7662]
[1738112622900,0.1604757,3120.9,3120.2,3.20485]
[1738112623213,3.3647057,3120.9,3120.2,3.20485]
[1738112623369,3.24444391,3120.8,3120.0,6.97126]
[1738112623703,3.3647157,3120.9,3120.2,3.2049]
[1738112623997,3.20444,3120.7,3120.0,4.988963]
[1738112624217,3.20451,3120.6,3120.0,1.783843]
[1738112624425,3.20451,3120.6,3120.0,0.79824683]
[1738112624877,3.20484,3120.3,3119.7,0.7662]
[1738112625083,3.20511,3120.1,3119.4,3.96114]
[1738112625293,3.24526392,3120.0,3119.4,0.7554]
[1738112625493,3.2052,3120.0,3119.4,0.7554]
[1738112625693,0.04006627,3119.9,3119.4,0.7554]
[1738112625883,3.20564,3119.5,3119.0,0.8172]
[1738112626084,0.04006627,3119.9,3119.0,4.05540639]
[1738112626085,3.2055,3119.7,3119.0,4.05540639]
[1738112626325,3.2056,3119.6,3119.0,0.8172]
[1738112626487,3.20585,3119.3,3119.0,0.8172]
[1738112626690,3.20585,3119.3,3118.7,3.20645]
[1738112627227,3.2052,3120.0,3119.0,3.20612]
[1738112627228,3.20535,3119.8,3119.0,3.20612]
[1738112627423,0.7543,3120.1,3119.3,3.20575]
[1738112627626,3.20542,3119.8,3119.1,3.98685]
[1738112627802,3.20542,3119.8,3119.2,3.20594]
[1738112628138,0.05646725,3119.7,3119.2,3.20594]
[1738112628833,0.05646725,3119.7,3119.3,3.23789461]
[1738112628985,3.20512,3120.1,3119.4,3.20574]
[1738112629315,3.20514,3120.0,3119.5,0.32377946]
[1738112629614,0.04006635,3119.9,3119.1,0.7808]
[1738112629793,3.20554,3119.6,3119.1,0.7808]
[1738112629995,3.20523,3119.9,3119.2,3.20592]
[1738112630326,3.20534,3119.8,3119.2,3.23797597]
[1738112630609,3.2056,3119.6,3119.1,0.7808]
[1738112630818,0.05646725,3119.5,3119.2,0.03205608]
[1738112631117,3.20534,3119.8,3119.2,3.63986969]
[1738112631305,0.05646725,3119.4,3119.2,0.43394969]
[1738112631493,3.20544,3119.7,3119.2,0.40189361]
[1738112631808,0.05641192,3119.3,3119.1,0.7808]
[1738112632122,0.05635659,3119.2,3119.1,0.7808]
[1738112632481,3.20568,3119.5,3119.1,0.7808]
[1738112632682,0.05635659,3119.2,3119.1,0.7808]
[1738112632922,0.81357049,3119.7,3119.1,0.7808]
[1738112632923,3.979,3119.7,3119.1,0.7808]
[1738112633214,3.20555,3119.6,3119.1,1.50331765]
[1738112633421,3.2618651,3119.6,3119.1,1.50331765]
[1738112633778,0.0563151,3119.6,3119.2,3.20594]
[1738112634211,3.20536,3119.8,3119.2,3.20594]
[1738112634418,0.05623212,3119.5,3119.2,3.20594]
[1738112634632,3.20536,3119.8,3119.2,4.0006784]
[1738112635123,0.05623212,3119.7,3119.2,4.0006784]
[1738112636226,0.05623212,3119.7,3119.5,3.20563]
[1738112636380,3.20521,3120.0,3119.4,3.20571]
[1738112636583,0.05630126,3119.6,3119.4,3.20571]
[1738112636805,3.20521,3120.0,3119.4,3.20571]
[1738112637007,0.05637042,3119.5,3119.4,3.20571]
[1738112637214,3.20537,3119.8,3119.2,3.20593]
[1738112637411,0.05637042,3119.5,3119.2,3.2379846]
[1738112637606,3.20537,3119.8,3119.2,3.2379846]
[1738112637807,0.05628743,3119.4,3119.2,3.2379846]
[1738112638010,3.20521,3120.0,3119.3,3.60764846]
[1738112638211,3.20521,3120.0,3119.3,3.20577]
[1738112639215,3.20521,3120.0,3119.3,3.23782328]
[1738112639649,3.20521,3120.0,3119.3,0.03205328]
[1738112639796,3.20521,3120.0,3119.4,3.20568]
[1738112639995,3.20495,3120.2,3119.4,3.20568]
[1738112640196,3.2046,3120.6,3119.9,3.20519]
[1738112640427,3.20477,3120.4,3119.7,0.03204904]
[1738112640605,3.20493,3120.2,3119.6,3.95907]
[1738112640932,6.40955,3120.4,3119.7,3.20542]
[1738112641125,3.20486,3120.3,3119.7,4.03996943]
[1738112641497,3.20477,3120.4,3119.8,3.20527]
[1738112641696,3.20477,3120.4,3119.7,0.83454943]
[1738112641892,3.20495,3120.2,3119.7,0.83454943]
[1738112642091,3.20511,3120.1,3119.6,1.38453425]
[1738112642391,3.20511,3120.1,3119.6,0.7536]
[1738112642627,3.20495,3120.2,3119.6,0.7536]
[1738112642847,0.79476435,3120.1,3119.3,0.8227]
[1738112643173,3.20537,3119.8,3119.3,0.8227]
[1738112643665,3.20512,3120.0,3119.4,0.03205559]
[1738112644037,6.20494,3120.2,3119.5,3.61169956]
[1738112644238,3.20506,3120.1,3119.6,0.03205148]
[1738112644548,9.40993,3120.2,3119.5,3.20563]
[1738112644852,3.20505,3120.1,3119.5,3.20563]
[1738112645154,3.20514,3120.0,3119.5,3.20563]
[1738112645850,3.20504,3120.1,3119.5,3.20563]
[1738112646341,3.20519,3120.0,3119.3,4.02851]
[1738112646658,3.20527,3119.9,3119.3,0.8227]
[1738112646841,3.20548,3119.7,3119.3,0.8227]
[1738112647019,3.20559,3119.6,3119.3,0.8227]
[1738112647355,3.20557,3119.6,3119.3,0.8227]
[1738112647558,3.20566,3119.5,3119.3,0.8227]
[1738112647854,3.20595,3119.2,3118.9,0.8116]
[1738112648065,0.641114,3119.5,3118.4,3.86308651]
[1738112648066,3.20606,3119.1,3118.5,0.8116]
[1738112648277,0.641114,3119.5,3118.5,0.8116]
[1738112648278,0.0562736,3119.0,3118.5,0.8116]
[1738112648422,3.20615,3119.0,3118.5,0.8116]
[1738112648767,3.2625436,3118.9,3118.5,0.8116]
[1738112648937,0.0562736,3118.9,3118.5,0.84366352]
[1738112649256,3.20615,3119.0,3118.5,0.84366352]
[1738112649553,0.0559485,3118.9,3118.6,3.61155735]
[1738112649754,4.03767,3119.8,3118.9,3.20625]
[1738112649970,3.20537,3119.8,3119.0,0.03205597]
[1738112650155,3.20537,3119.8,3119.1,3.20598]
[1738112650356,3.20524,3119.9,3119.3,3.99773]
[1738112650659,3.20524,3119.9,3119.3,0.7919]
[1738112650952,3.22515,3120.0,3119.4,3.23772361]
[1738112651144,3.20523,3119.9,3119.4,3.23772361]
[1738112652176,3.22515,3120.0,3119.4,0.03205361]
[1738112652333,3.20533,3119.8,3119.3,0.82395363]
[1738112652668,3.20533,3119.8,3119.3,0.7919]
[1738112652820,0.02,3120.0,3119.4,0.55]
[1738112653019,0.02,3120.0,3119.6,3.20547]
[1738112653236,0.02,3120.0,3119.9,3.20523]
[1738112653737,0.02,3120.0,3119.9,3.23727613]
[1738112653969,0.02,3120.0,3119.9,3.20523]
[1738112654361,0.02,3120.0,3119.9,7.53887613]
[1738112654572,0.02,3120.0,3119.9,7.50683]
[1738112654865,0.02,3120.0,3119.9,8.61041525]
[1738112655430,0.07642574,3120.0,3119.9,9.37953074]
[1738112656163,0.02,3120.0,3119.9,9.37953074]
[1738112657328,0.07642574,3120.0,3119.9,9.37953074]
[1738112657542,0.02,3120.0,3119.9,9.37953074]
[1738112657775,0.02,3120.0,3119.9,2.1509989]
[1738112657982,0.07642574,3120.0,3119.9,4.25264365]
[1738112658144,0.02,3120.0,3119.9,4.80264365]
[1738112658773,0.02,3120.0,3119.9,4.83468834]
[1738112659579,0.02,3120.0,3119.9,4.25264365]
[1738112659780,0.02,3120.0,3119.9,2.12558726]
[1738112659982,0.02,3120.0,3119.9,0.29581365]
[1738112660481,0.0767507,3120.0,3119.9,0.29581365]
[1738112661174,0.0767507,3120.0,3119.6,4.02565]
[1738112661175,0.0767507,3120.0,3119.6,0.8202]
[1738112661379,0.0767507,3120.0,3119.5,3.2056]
[1738112661576,0.0767507,3120.0,3119.6,3.23755985]
[1738112661756,0.0767507,3120.0,3119.7,3.84973599]
[1738112661952,0.0767507,3120.0,3119.9,0.8202]
[1738112662155,0.0767507,3120.0,3119.9,4.02543]
[1738112662886,0.0767507,3120.0,3119.9,4.57543]
[1738112663383,0.02,3120.0,3119.9,4.57543]
[1738112663579,0.07666084,3120.0,3119.9,5.4179386]
[1738112663781,0.02,3120.0,3119.9,5.44998393]
[1738112663959,0.07666084,3120.0,3119.9,5.4179386]
[1738112664159,0.02,3120.0,3119.9,5.4179386]
[1738112664360,0.07668157,3120.0,3119.9,5.44998394]
[1738112664559,0.02,3120.0,3119.9,5.44998394]
[1738112664774,0.07668157,3120.0,3119.9,5.44998394]
[1738112664943,0.02,3120.0,3119.9,5.44998394]
[1738112665147,0.07668157,3120.0,3119.9,8.44998394]
[1738112665374,0.02,3120.0,3119.9,8.4179386]
[1738112666471,0.02,3120.0,3119.9,7.8679386]
[1738112667488,0.02,3120.0,3119.9,0.8425086]
[1738112667695,0.07732459,3120.0,3119.6,0.7986]
[1738112667990,0.07732459,3120.0,3119.9,3.20523]
[1738112668653,0.07732459,3120.0,3119.8,0.03204941]
[1738112668995,0.07732459,3120.0,3119.7,3.20536]
[1738112669190,0.07732459,3120.0,3119.5,3.20557]
[1738112669486,3.28244459,3120.0,3119.5,3.926569]
[1738112669680,0.07732459,3120.0,3119.6,0.03205204]
[1738112670189,0.07732459,3120.0,3119.5,3.926569]
[1738112670548,0.07732459,3120.0,3119.6,0.03205203]
[1738112670756,0.07732459,3120.0,3119.9,3.97983]
[1738112670950,0.02,3120.0,3119.9,4.927813]
[1738112671150,0.07500304,3120.0,3119.9,7.95985648]
[1738112671348,0.02,3120.0,3119.9,7.927813]
[1738112672156,1e-05,3120.0,3119.9,15.10503564]
[1738112672358,1e-05,3120.0,3119.9,11.72003564]
[1738112672561,1e-05,3120.0,3119.9,7.927813]
[1738112672986,1e-05,3120.0,3119.9,11.72003564]
[1738112673188,0.1604757,3120.9,3119.9,4.96480564]
[1738112673388,0.1604757,3120.9,3120.8,7.5315]
[1738112675690,5.7e-06,3120.9,3120.8,7.5315]
[1738112679924,5.7e-06,3120.9,3120.8,8.18248738]
[1738112683925,5.7e-06,3120.9,3120.8,4.63248738]
[1738112684129,5.7e-06,3120.9,3120.8,4.66451954]
[1738112684341,5.7e-06,3120.9,3120.8,4.80042511]
[1738112684549,5.7e-06,3120.9,3120.8,7.76839295]
[1738112684849,0.05581593,3120.9,3120.8,7.76839295]
[1738112685149,5.7e-06,3120.9,3120.6,3.20441]
[1738112685346,5.7e-06,3120.9,3120.7,3.20439]
[1738112685651,5.7e-06,3120.9,3120.6,3.20441]
[1738112685652,5.7e-06,3120.9,3120.8,3.7543]
[1738112685949,5.7e-06,3120.9,3120.6,3.20441]
[1738112686451,5.7e-06,3120.9,3120.4,3.2367192]
[1738112686620,5.7e-06,3120.9,3120.4,3.88086212]
[1738112686948,3.2042057,3120.9,3120.3,3.20471]
[1738112687316,3.2042057,3120.9,3120.4,0.03204173]
[1738112687834,5.7e-06,3120.9,3120.4,3.23673173]
[1738112688240,5.7e-06,3120.9,3120.4,0.03204173]
[1738112688552,3.20433,3120.8,3120.3,0.55]
[1738112688915,3.2042357,3120.9,3120.3,0.55]
[1738112689136,5.7e-06,3120.9,3120.4,3.23673178]
[1738112689337,5.7e-06,3120.9,3120.4,0.03204178]
[1738112689541,5.7e-06,3120.9,3120.5,3.20458]
[1738112689717,5.7e-06,3120.9,3120.4,0.32368318]
[1738112689918,3.2042557,3120.9,3120.3,3.20479]
[1738112690922,5.7e-06,3120.9,3120.4,3.23674238]
[1738112692456,5.7e-06,3120.9,3120.3,3.20479]
[1738112692763,5.7e-06,3120.9,3120.4,3.23674125]
[1738112693271,0.05473771,3120.8,3120.4,3.23668125]
[1738112693430,0.05473771,3120.8,3120.6,3.20444]
[1738112693625,0.05473771,3120.8,3120.7,0.03204002]
[1738112694457,0.05473771,3120.8,3120.5,0.40030813]
[1738112694660,0.05473771,3120.8,3120.2,3.2049]
[1738112694661,0.05473771,3120.8,3120.2,3.20484]
[1738112694825,0.7597,3120.7,3120.0,3.70159056]
[1738112695025,0.7597,3120.7,3120.1,3.03204366]
[1738112695233,0.7597,3120.7,3120.2,3.20489]
[1738112695433,0.7597,3120.7,3120.3,0.0320441]
[1738112695659,5.7e-06,3120.9,3120.4,0.55]
[1738112695864,5.7e-06,3120.9,3120.6,3.20441]
[1738112696185,0.05414942,3120.8,3120.6,3.20441]
[1738112696367,0.05414942,3120.8,3120.4,3.20469]
[1738112697023,0.05414942,3120.8,3120.4,3.23673154]
[1738112697229,0.05414942,3120.8,3120.4,3.88089469]
[1738112697744,0.05414942,3120.8,3120.5,3.20456]
[1738112697946,0.05414942,3120.8,3120.6,0.03204154]
[1738112698158,0.05414942,3120.8,3120.6,3.23645154]
[1738112698826,0.05414942,3120.8,3120.4,0.64416315]
[1738112699385,0.05414942,3120.8,3120.5,0.55]
[1738112699791,3.20443,3120.7,3119.9,3.7507]
[1738112700091,3.20443,3120.7,3120.1,3.0]
[1738112700385,3.25856249,3120.6,3120.1,3.0]
[1738112700530,3.25856249,3120.6,3120.1,6.2370651]
[1738112700735,0.05405249,3120.6,3120.1,6.2370651]
[1738112700997,0.05405249,3120.6,3120.1,6.2369851]
[1738112701296,0.776,3120.6,3119.9,3.20521]
[1738112701590,0.05405249,3120.5,3120.3,0.55]
[1738112701786,0.05405249,3120.5,3120.4,3.78675029]
[1738112701938,0.7760057,3120.9,3120.6,3.2045]
[1738112702139,0.7760057,3120.9,3120.7,0.03204099]
[1738112702393,0.7760057,3120.9,3120.6,3.2045]
[1738112702741,0.7760057,3120.9,3120.5,3.20458]
[1738112702942,0.7760057,3120.9,3120.4,3.75471]
[1738112703143,0.7760057,3120.9,3120.6,3.2045]
[1738112703456,0.7760057,3120.9,3120.8,3.2043]
[1738112703661,5.7e-06,3120.9,3120.8,3.2043]
[1738112703997,5.7e-06,3120.9,3120.8,3.7543]
[1738112704337,5.7e-06,3120.9,3120.8,6.7543]
[1738112704585,5.7e-06,3120.9,3120.8,8.15426491]
[1738112704938,5.7e-06,3120.9,3120.8,8.95866491]
[1738112706373,5.7e-06,3120.9,3120.8,9.59220655]
[1738112707371,5.7e-06,3120.9,3120.8,8.95866491]
[1738112709659,5.7e-06,3120.9,3120.8,8.15426491]
[1738112710541,5.7e-06,3120.9,3120.8,5.15426491]
[1738112710856,5.7e-06,3120.9,3120.8,3.7543]
[1738112711055,0.0550549,3120.9,3120.8,3.7543]
[1738112711745,0.0550549,3120.9,3120.8,3.2043]
[1738112712701,0.0550549,3120.9,3120.8,3.23633714]
[1738112713365,5.7e-06,3120.9,3120.8,3.78633714]
[1738112713679,0.0550549,3120.9,3120.8,5.58625285]
[1738112713908,5.7e-06,3120.9,3120.8,5.55421571]
[1738112714044,5.7e-06,3120.9,3120.8,3.7543]
[1738112714482,0.05477806,3120.9,3120.8,3.7543]
[1738112715406,0.05477806,3120.9,3120.6,3.20441]
[1738112715552,0.86107806,3120.9,3120.7,0.03203588]
[1738112715862,0.05477806,3120.9,3120.8,3.2043]
[1738112716893,3.20451,3120.6,3120.4,0.720751]
[1738112717091,3.20503,3120.1,3119.5,3.96573]
[1738112717254,0.7958,3120.3,3119.7,3.20539]
[1738112717452,0.05449553,3120.0,3119.8,3.23730789]
[1738112717653,0.7958,3120.3,3119.8,3.23730789]
[1738112717884,0.05449553,3119.9,3119.8,3.23730789]
[1738112718182,0.05449553,3119.9,3119.6,5.1283091]
[1738112718183,0.7958,3120.3,3119.9,3.20517]
[1738112718793,0.7958,3120.3,3120.1,3.20499]
[1738112719155,0.8065,3120.8,3120.2,3.20492]
[1738112719356,0.8065,3120.8,3120.7,3.20434]
[1738112720589,0.8065,3120.8,3120.6,3.20449]
[1738112720988,0.8065,3120.8,3120.7,3.2044]
[1738112721356,5.7e-06,3120.9,3120.7,3.23644245]
[1738112721689,5.7e-06,3120.9,3120.8,3.2043]
[1738112722198,0.7899,3120.8,3120.5,3.2046]
[1738112722355,0.7899,3120.8,3120.3,3.20474]
[1738112722804,0.7899,3120.8,3120.5,3.2046]
[1738112723165,0.052447,3120.7,3120.5,3.2046]
[1738112723367,0.052447,3120.7,3120.4,3.20469]